bitfinex-derivatives/quotes_ETHF0:USTF0_20240901
["timestamp","ask_amount","ask_price","bid_price","bid_amount"]
[1725153745662,12.79115689,2506.9,2506.8,1.04592197]
[1725153747258,12.79115689,2506.9,2506.7,1.43392197]
[1725153747563,8.80235689,2506.9,2506.7,1.43392197]
[1725153748166,8.80235689,2506.9,2506.7,1.81612197]
[1725153749760,0.39886,2507.3,2506.8,8.01160723]
[1725153749963,0.76366,2507.3,2507.2,1.44]
[1725153750167,0.3648,2507.3,2507.2,1.44]
[1725153750667,0.3648,2507.3,2507.2,1.8207]
[1725153751063,0.3648,2507.3,2507.2,2.1794]
[1725153753069,3.2078,2507.6,2507.2,9.20805635]
[1725153753368,4.43133726,2507.5,2507.4,1.83883]
[1725153753566,4.43133726,2507.5,2507.4,2.48368379]
[1725153754278,4.43133726,2507.5,2507.4,1.44]
[1725153755267,0.39877,2507.8,2507.4,1.44]
[1725153755660,4.21286842,2507.7,2507.4,1.44]
[1725153756265,4.21286842,2507.7,2507.4,1.83883]
[1725153756466,4.21286842,2507.7,2507.6,1.44]
[1725153756971,3.2078,2508.2,2507.6,14.98982518]
[1725153757158,3.2078,2508.2,2508.1,1.44]
[1725153759366,3.60651,2508.2,2508.1,1.44]
[1725153759566,3.2078,2508.2,2508.1,1.44]
[1725153759764,4.4331025,2508.2,2508.1,1.44]
[1725153760463,4.8318125,2508.2,2508.1,1.44]
[1725153760665,4.4331025,2508.2,2508.1,1.44]
[1725153761465,4.8318125,2508.2,2508.1,1.44]
[1725153763272,4.8318125,2508.2,2507.9,0.00599125]
[1725153763273,0.39874,2508.0,2507.9,0.00599125]
[1725153763463,1.3956,2508.0,2507.9,0.00599125]
[1725153763668,15.68643396,2508.0,2507.9,0.00599125]
[1725153764478,9.68643396,2508.0,2507.9,0.00599125]
[1725153766371,4.70237396,2508.0,2507.9,0.00599125]
[1725153766575,8.68957396,2508.0,2507.9,0.00599125]
[1725153768374,11.89737396,2508.0,2507.9,0.00599125]
[1725153769780,8.68957396,2508.0,2507.9,0.00599125]
[1725153770276,11.89737396,2508.0,2507.9,0.00599125]
[1725153772475,8.68957396,2508.0,2507.9,0.00599125]
[1725153772876,11.89737396,2508.0,2507.9,0.00599125]
[1725153773474,8.68957396,2508.0,2507.9,0.00599125]
[1725153776583,11.89737396,2508.0,2507.9,0.00599125]
[1725153778285,0.39883,2507.5,2507.2,3.2078]
[1725153778480,19.93549396,2508.0,2507.2,4.6478]
[1725153778481,0.99689,2507.9,2507.2,4.6478]
[1725153778786,4.32262092,2507.4,2507.3,1.44]
[1725153778984,4.14635743,2507.8,2507.3,1.44]
[1725153779178,0.99689,2507.9,2507.3,1.44]
[1725153779488,4.62892508,2507.8,2507.3,1.44599125]
[1725153779994,0.39882,2507.5,2507.3,1.44599125]
[1725153780390,4.47843213,2507.4,2507.3,1.44599125]
[1725153782082,4.87726213,2507.4,2507.3,1.44599125]
[1725153782288,4.87726213,2507.4,2507.3,0.00599125]
[1725153782480,0.39883,2507.4,2507.3,0.00599125]
[1725153782677,4.59586994,2507.4,2507.3,0.00599125]
[1725153787184,4.59586994,2507.4,2507.3,1.44599125]
[1725153787587,4.59586994,2507.4,2507.3,0.00599125]
[1725153790079,8.58386994,2507.4,2507.3,0.00599125]
[1725153790277,4.59586994,2507.4,2507.3,0.00599125]
[1725153790978,7.80366994,2507.4,2507.3,0.00599125]
[1725153792194,4.59586994,2507.4,2507.3,0.00599125]
[1725153792394,4.19703994,2507.4,2507.3,5.43399125]
[1725153792588,3.2078,2507.8,2507.3,5.43399125]
[1725153792889,4.25369455,2507.5,2507.3,1.44599125]
[1725153793084,4.25369455,2507.5,2507.4,0.3754]
[1725153793290,0.39881,2507.6,2507.4,0.3754]
[1725153793591,4.61881685,2507.5,2507.4,0.3754]
[1725153794093,0.39882,2507.5,2507.4,0.3754]
[1725153798884,0.39883,2507.4,2507.3,1.04766993]
[1725153799092,0.78193,2507.4,2507.3,0.00599125]
[1725153799290,5.01297449,2507.4,2507.3,0.00599125]
[1725153799691,9.99806449,2507.4,2507.3,0.00599125]
[1725153800289,6.01006449,2507.4,2507.3,0.00599125]
[1725153802789,6.39046449,2507.4,2507.3,0.00599125]
[1725153803293,10.37846449,2507.4,2507.3,0.00599125]
[1725153804093,10.74630839,2507.4,2507.3,0.00599125]
[1725153804595,10.37846449,2507.4,2507.3,0.00599125]
[1725153805202,6.39046449,2507.4,2507.3,0.00599125]
[1725153805589,6.00736449,2507.4,2507.3,0.00599125]
[1725153807105,6.38706449,2507.4,2507.3,0.00599125]
[1725153810093,10.37506449,2507.4,2507.3,0.00599125]
[1725153810301,0.39887,2507.2,2507.0,0.3573]
[1725153810503,5.14262007,2507.1,2506.8,1.04167868]
[1725153810805,1.8201,2507.0,2506.8,0.3652]
[1725153811003,1.3962,2506.9,2506.8,0.3652]
[1725153811198,0.99733,2506.8,2506.6,0.00599125]
[1725153811497,7.8319613,2506.7,2506.6,0.00599125]
[1725153811703,13.5817813,2506.7,2506.6,0.00599125]
[1725153812094,12.8636813,2506.7,2506.6,0.00599125]
[1725153815300,11.8663113,2506.7,2506.6,0.00599125]
[1725153819197,7.8767113,2506.7,2506.6,0.00599125]
[1725153820405,11.8663113,2506.7,2506.6,0.00599125]
[1725153820609,17.8663113,2506.7,2506.6,0.00599125]
[1725153820902,17.8663113,2506.7,2506.0,0.3564]
[1725153821104,3.60682,2506.3,2506.1,0.3712]
[1725153821496,4.47991513,2506.2,2506.1,0.3712]
[1725153823308,3.88111976,2506.2,2506.1,4.3616]
[1725153828011,3.88111976,2506.2,2506.1,4.76064]
[1725153828209,0.00599125,2506.4,2506.1,4.76064]
[1725153828505,0.00599125,2506.4,2506.1,0.77024]
[1725153828902,0.00599125,2506.4,2506.3,0.39901]
[1725153829098,0.00599125,2506.4,2506.3,1.83901]
[1725153829303,0.00599125,2506.4,2506.3,5.82861]
[1725153831003,0.00599125,2506.4,2506.3,5.4296]
[1725153831204,0.00599125,2506.4,2506.3,5.82861]
[1725153831907,0.00599125,2506.4,2506.3,6.18431]
[1725153832913,0.00599125,2506.4,2506.3,12.18431]
[1725153833308,0.00599125,2506.4,2506.3,13.22598868]
[1725153834420,3.60672,2506.9,2506.6,0.39896]
[1725153834715,5.02856333,2506.8,2506.7,0.7312]
[1725153834916,4.62963333,2506.8,2506.7,0.7312]
[1725153835503,5.02856333,2506.8,2506.7,0.7312]
[1725153835711,5.02856333,2506.8,2506.4,1.44]
[1725153835712,0.39896,2506.7,2506.4,1.44]
[1725153836014,0.39896,2506.7,2506.4,2.1712]
[1725153836415,0.39896,2506.7,2506.4,0.7312]
[1725153837505,0.39896,2506.7,2506.5,0.3886]
[1725153838312,0.39896,2506.6,2506.5,0.3886]
[1725153838506,4.60190139,2506.6,2506.5,0.3886]
[1725153838709,0.399,2506.4,2506.1,1.04167868]
[1725153839019,4.20294139,2506.3,2506.2,0.3542]
[1725153839619,8.19334139,2506.3,2506.0,1.04167868]
[1725153839812,0.39905,2506.1,2505.9,1.04766993]
[1725153840213,4.49566892,2506.0,2505.9,1.04766993]
[1725153840422,4.89472892,2506.0,2505.9,1.04766993]
[1725153840625,4.49566892,2506.0,2505.9,0.00599125]
[1725153840821,0.39906,2506.0,2505.9,0.00599125]
[1725153841210,4.67179737,2506.0,2505.9,0.00599125]
[1725153842922,4.27273737,2506.0,2505.9,0.00599125]
[1725153843121,4.67179737,2506.0,2505.9,0.00599125]
[1725153846911,4.27273737,2506.0,2505.9,0.00599125]
[1725153847623,4.67179737,2506.0,2505.9,0.00599125]
[1725153855026,4.27273737,2506.0,2505.9,0.00599125]
[1725153855231,4.27273737,2506.0,2505.9,1.04766993]
[1725153855430,4.97601767,2506.1,2505.9,1.04766993]
[1725153855826,0.39905,2506.1,2505.9,1.04766993]
[1725153856025,4.57696767,2506.0,2505.9,1.04766993]
[1725153856225,4.57696767,2506.0,2505.9,3.04388088]
[1725153856534,4.5562726,2506.1,2505.9,4.1569499]
[1725153856735,4.5562726,2506.1,2506.0,3.04106753]
[1725153857031,4.34414,2506.2,2506.0,1.99615824]
[1725153857231,3.96084,2506.2,2506.1,1.0449974]
[1725153857435,3.96084,2506.2,2506.1,1.4289974]
[1725153857639,8.55830151,2506.2,2506.1,0.384]
[1725153860726,12.54870151,2506.2,2506.0,1.0449974]
[1725153860928,8.55830151,2506.2,2506.0,1.4144974]
[1725153863436,8.55830151,2506.2,2506.1,1.0449974]
[1725153863935,8.55830151,2506.2,2506.0,1.4144974]
[1725153866238,0.39898,2506.5,2506.1,1.0449974]
[1725153866445,0.399,2506.4,2506.1,1.4250974]
[1725153866735,4.97712212,2506.4,2506.1,1.4250974]
[1725153867743,4.97712212,2506.4,2506.2,0.3847]
[1725153868227,4.97712212,2506.4,2506.3,0.3878]
[1725153869935,5.36174007,2507.1,2506.3,0.3878]
[1725153869936,3.21379125,2507.0,2506.3,4.3774]
[1725153870135,0.39897,2506.6,2506.4,1.0449974]
[1725153870331,4.87602175,2506.5,2506.4,1.0449974]
[1725153870538,0.39901,2506.3,2506.2,1.0449974]
[1725153870749,0.39903,2506.2,2506.1,1.0449974]
[1725153871245,0.39904,2506.1,2506.0,1.0449974]
[1725153871436,1.15074,2506.1,2506.0,1.0449974]
[1725153871743,5.79169754,2506.1,2506.0,1.0449974]
[1725153872446,5.79169754,2506.1,2506.0,3.04118929]
[1725153872636,5.79169754,2506.1,2506.0,1.0449974]
[1725153874648,5.79169754,2506.1,2506.0,3.0412124]
[1725153875347,5.39265754,2506.1,2506.0,3.04121291]
[1725153875646,5.39265754,2506.1,2506.0,3.56348715]
[1725153875647,4.26065754,2506.1,2506.0,3.56348715]
[1725153876037,4.26065754,2506.1,2506.0,4.15094362]
[1725153877133,4.26065754,2506.1,2506.0,4.15093544]
[1725153877841,5.8004,2506.4,2506.0,6.9731238]
[1725153878038,5.8004,2506.4,2506.2,1.0451852]
[1725153878240,4.84533778,2506.3,2506.2,1.0451852]
[1725153878435,5.23333778,2506.3,2506.1,1.0451852]
[1725153878741,4.83432778,2506.3,2506.2,1.0451852]
[1725153879636,8.82472778,2506.3,2506.2,1.0451852]
[1725153879838,8.82472778,2506.3,2505.9,0.00599125]
[1725153879839,0.39906,2506.0,2505.9,0.00599125]
[1725153880056,5.04686,2506.0,2505.9,0.00599125]
[1725153880246,13.56707342,2506.0,2505.9,0.00599125]
[1725153880846,20.56472342,2506.0,2505.9,0.00599125]
[1725153881151,0.39912,2505.6,2505.5,1.0454734]
[1725153881337,0.39912,2505.6,2505.4,1.5677778]
[1725153881338,0.39914,2505.5,2505.4,1.0454734]
[1725153881746,8.68708128,2505.5,2505.4,1.0454734]
[1725153882247,6.13588128,2505.5,2505.4,3.04221181]
[1725153882442,6.13588128,2505.5,2505.2,2.4630352]
[1725153882443,16.72579128,2505.5,2505.2,0.00599125]
[1725153882642,5.04697,2505.3,2505.2,0.00599125]
[1725153882844,9.03897,2505.3,2505.2,0.00599125]
[1725153883042,13.51421001,2505.3,2505.2,0.00599125]
[1725153884338,15.52421001,2505.3,2505.2,0.00599125]
[1725153885139,7.68304001,2505.3,2505.2,0.00599125]
[1725153885657,12.07421001,2505.3,2505.2,0.00599125]
[1725153889457,7.68304001,2505.3,2505.2,0.00599125]
[1725153890257,8.08221001,2505.3,2505.2,0.00599125]
[1725153891157,4.87441001,2505.3,2505.2,0.00599125]
[1725153891855,4.47524001,2505.3,2505.2,0.00599125]
[1725153894162,17.91724001,2505.3,2504.8,1.0454734]
[1725153894460,0.39925,2504.8,2504.5,1.7966734]
[1725153894652,0.1828587,2504.8,2504.5,1.7966734]
[1725153894867,0.1828587,2504.8,2504.5,0.7512]
[1725153894868,4.61862823,2504.7,2504.5,0.7512]
[1725153895163,0.39928,2504.6,2504.5,0.7512]
[1725153895460,4.37287075,2504.6,2504.5,0.7512]
[1725153895959,8.36567075,2504.6,2504.5,0.7512]
[1725153896159,4.37287075,2504.6,2504.5,0.7512]
[1725153896764,8.36567075,2504.6,2504.5,0.7512]
[1725153896958,4.37287075,2504.6,2504.5,0.7512]
[1725153897158,8.36567075,2504.6,2504.5,0.7512]
[1725153897553,4.37287075,2504.6,2504.5,0.7512]
[1725153898258,3.97359075,2504.6,2504.5,0.7512]
[1725153898653,4.59902558,2504.7,2504.5,0.7512]
[1725153898855,3.84926,2504.8,2504.5,0.7512]
[1725153899261,4.59902558,2504.7,2504.5,0.7512]
[1725153901167,4.59902558,2504.7,2504.5,5.1433]
[1725153901566,4.59902558,2504.7,2504.5,4.744]
[1725153901765,4.59902558,2504.7,2504.5,0.7512]
[1725153901968,4.44042043,2504.8,2504.5,0.7512]
[1725153902175,3.60704,2504.9,2504.5,0.7512]
[1725153902561,4.26502312,2504.7,2504.5,0.7512]
[1725153902763,4.44163078,2504.8,2504.5,0.7512]
[1725153903067,3.60704,2504.9,2504.5,0.7512]
[1725153903263,4.44163078,2504.8,2504.5,0.7512]
[1725153905169,4.44163078,2504.8,2504.5,1.1505]
[1725153905470,4.44163078,2504.8,2504.5,1.15049]
[1725153905666,4.44163078,2504.8,2504.5,1.06049]
[1725153906069,4.84088078,2504.8,2504.5,1.06049]
[1725153907672,4.44163078,2504.8,2504.5,0.6612]
[1725153907874,4.84089078,2504.8,2504.5,0.6612]
[1725153908374,0.39928,2504.6,2504.5,0.6612]
[1725153908877,4.85159701,2504.6,2504.5,0.6612]
[1725153909568,4.45231701,2504.6,2504.5,0.6612]
[1725153920380,4.85159701,2504.6,2504.5,0.6612]
[1725153920580,5.20699701,2504.6,2504.5,0.6612]
[1725153921481,4.80771701,2504.6,2504.5,0.6612]
[1725153921678,0.3993,2504.5,2504.3,0.00599125]
[1725153921981,4.4255674,2504.4,2504.3,0.00599125]
[1725153923583,4.4255674,2504.4,2504.3,1.05146465]
[1725153923780,4.8248774,2504.4,2504.3,0.00599125]
[1725153924178,4.4255674,2504.4,2504.3,0.00599125]
[1725153924491,4.4255674,2504.4,2504.3,1.05146465]
[1725153925287,4.8248774,2504.4,2504.3,1.05146465]
[1725153925475,4.8248774,2504.4,2504.3,3.04879545]
[1725153925681,4.8248774,2504.4,2504.3,1.05130397]
[1725153925983,4.8248774,2504.4,2504.3,0.00599125]
[1725153926387,4.8248774,2504.4,2504.3,1.05130397]
[1725153926575,4.4255674,2504.4,2504.3,1.05130397]
[1725153927988,4.8248774,2504.4,2504.3,1.05130397]
[1725153928187,4.8248774,2504.4,2504.3,0.00599125]
[1725153929889,8.0326774,2504.4,2504.3,0.00599125]
[1725153930483,12.0254774,2504.4,2504.3,0.00599125]
[1725153936492,18.0254774,2504.4,2504.3,0.00599125]
[1725153936788,12.0254774,2504.4,2504.3,0.00599125]
[1725153939191,11.6261674,2504.4,2504.3,0.00599125]
[1725153939598,7.6333674,2504.4,2504.3,0.00599125]
[1725153941010,4.4255674,2504.4,2504.3,0.00599125]
[1725153942401,4.8248774,2504.4,2504.3,0.00599125]
[1725153942986,4.4255674,2504.4,2504.3,0.00599125]
[1725153943395,4.4255674,2504.4,2504.3,0.38399125]
[1725153947792,4.4255674,2504.4,2504.3,0.74239125]
[1725153949604,7.6333674,2504.4,2504.3,0.74239125]
[1725153951094,8.0326774,2504.4,2504.3,0.38399125]
[1725153952322,7.6333674,2504.4,2504.3,0.38399125]
[1725153952502,8.0326774,2504.4,2504.3,0.38399125]
[1725153953216,9.0733674,2504.4,2504.3,0.38399125]
[1725153953410,5.8655674,2504.4,2504.3,1.42930397]
[1725153953713,5.8655674,2504.4,2504.3,3.42675481]
[1725153953910,5.8655674,2504.4,2504.3,1.42930397]
[1725153954107,5.8655674,2504.4,2504.3,3.42676125]
[1725153954609,5.8655674,2504.4,2504.3,3.82609125]
[1725153955001,5.8655674,2504.4,2504.3,4.34855633]
[1725153955399,5.8655674,2504.4,2504.3,4.93625352]
[1725153955718,5.8655674,2504.4,2504.3,8.92905352]
[1725153956212,5.8655674,2504.4,2504.3,8.52972352]
[1725153956402,5.8655674,2504.4,2504.3,8.5297253]
[1725153956606,5.8655674,2504.4,2504.3,6.37424853]
[1725153957313,3.2256024,2504.4,2504.3,17.54915633]
[1725153957505,5.04701,2505.1,2504.3,21.60427581]
[1725153957709,0.39922,2505.0,2504.8,1.04569722]
[1725153957906,1.44,2504.9,2504.8,1.42639722]
[1725153958214,1.44,2504.9,2504.8,3.42347597]
[1725153958410,1.44,2504.9,2504.8,7.41547597]
[1725153958605,1.44,2504.9,2504.8,6.36977875]
[1725153958812,1.44,2504.9,2504.8,7.41529597]
[1725153959118,6.46915551,2504.9,2504.8,1.04551722]
[1725153959311,0.39926,2504.7,2504.6,1.04551722]
[1725153959507,1.83926,2504.7,2504.6,1.04551722]
[1725153959712,6.46918551,2504.7,2504.6,1.99730004]
[1725153960016,6.46918551,2504.7,2504.6,3.56584587]
[1725153960017,6.06992551,2504.7,2504.6,3.56584587]
[1725153960213,6.06992551,2504.7,2504.6,4.15351771]
[1725153960419,6.46918551,2504.7,2504.6,4.15351771]
[1725153960615,6.84298551,2504.7,2504.5,1.42137564]
[1725153960821,6.06992551,2504.7,2504.5,1.42137564]
[1725153961012,4.62992551,2504.7,2504.6,1.41628085]
[1725153961210,6.06992551,2504.7,2504.6,4.98205065]
[1725153961517,1.44,2504.7,2504.6,4.52402961]
[1725153961920,5.60524621,2504.7,2504.6,4.52402961]
[1725153962311,5.60524621,2504.7,2504.6,3.9363698]
[1725153962512,5.60524621,2504.7,2504.6,4.5240292]
[1725153962823,1.44,2504.9,2504.6,15.03969952]
[1725153963019,1.44,2504.9,2504.8,1.56823626]
[1725153963322,1.44,2504.9,2504.8,3.56551468]
[1725153963509,1.44,2504.9,2504.8,7.93211468]
[1725153963716,1.44,2504.9,2504.8,8.88623606]
[1725153964421,4.6478,2505.1,2504.8,8.88623606]
[1725153964620,4.6478,2505.1,2504.9,3.04211845]
[1725153964940,4.6478,2505.1,2505.0,0.3698]
[1725153965322,9.00807727,2505.1,2505.0,0.3698]
[1725153965522,7.56807727,2505.1,2505.0,0.3698]
[1725153965714,7.56807727,2505.1,2505.0,1.41495509]
[1725153966114,7.56807727,2505.1,2505.0,7.40381231]
[1725153966322,4.3184,2505.9,2505.0,22.7615937]
[1725153966635,1.44,2505.9,2505.6,0.39912]
[1725153966817,1.44,2505.9,2505.6,1.44387943]
[1725153967019,1.44,2505.9,2505.6,8.17001819]
[1725153967216,1.44,2505.9,2505.6,7.48775876]
[1725153967416,1.44,2505.9,2505.6,6.53445614]
[1725153968018,3.97744,2506.2,2505.6,6.53445614]
[1725153968319,7.42744,2506.2,2505.6,7.48764621]
[1725153968516,7.42744,2506.2,2505.6,12.53370057]
[1725153968732,7.42744,2506.2,2505.6,15.64215275]
[1725153968915,7.0284,2506.2,2505.6,15.64215275]
[1725153969119,7.0284,2506.2,2505.6,15.05469031]
[1725153969526,7.42743,2506.2,2505.6,14.52895851]
[1725153969726,7.42743,2506.2,2505.6,6.53282734]
[1725153969928,0.39904,2506.1,2505.6,6.53282734]
[1725153970128,0.31503125,2506.1,2505.6,5.0923]
[1725153970421,4.2516667,2506.0,2505.7,0.3991]
[1725153971522,4.2516667,2506.0,2505.6,1.10709125]
[1725153971523,4.2516667,2506.0,2505.8,0.39907]
[1725153971716,4.2516667,2506.0,2505.9,0.39907]
[1725153972329,4.2516667,2506.0,2505.9,4.38947]
[1725153972524,0.00599125,2506.1,2505.9,4.38947]
[1725153972726,0.00599125,2506.1,2505.8,0.39909]
[1725153972927,0.00599125,2506.1,2505.7,0.3991]
[1725153973123,0.00599125,2506.1,2505.8,0.39909]
[1725153973529,0.00599125,2506.1,2505.8,4.38949]
[1725153973918,0.00599125,2506.1,2506.0,0.39906]
[1725153974326,0.00599125,2506.1,2505.6,1.10709125]
[1725153974535,0.40503125,2506.1,2505.7,0.39909]
[1725153977135,0.00599125,2506.1,2505.8,0.39909]
[1725153977332,0.38599125,2506.1,2505.8,0.39909]
[1725153977535,0.38599125,2506.1,2505.8,4.38949]
[1725153977733,0.00599125,2506.1,2505.9,0.39907]
[1725153978043,0.00599125,2506.1,2505.8,3.9904]
[1725153978339,4.34147874,2506.0,2505.7,0.3723]
[1725153978534,5.12484874,2506.0,2505.7,0.3723]
[1725153978738,0.38,2505.9,2505.7,0.3723]
[1725153979129,4.36477196,2505.8,2505.7,0.3723]
[1725153982042,4.36477196,2505.8,2505.7,0.77141]
[1725153982347,0.40504125,2506.1,2505.9,0.39907]
[1725153982348,0.00599125,2506.1,2505.9,0.39907]
[1725153983344,0.40503125,2506.1,2505.8,0.39909]
[1725153984046,0.40503125,2506.1,2505.7,3.97919]
[1725153984241,0.40503125,2506.1,2505.8,0.39909]
[1725153984438,0.00599125,2506.1,2505.8,0.39909]
[1725153984633,0.00599125,2506.1,2505.7,3.5801]
[1725153984842,0.39907,2505.9,2505.7,0.3723]
[1725153985236,0.39907,2505.9,2505.6,0.00599125]
[1725153985237,0.39911,2505.7,2505.6,0.00599125]
[1725153985746,4.55652647,2505.7,2505.6,0.00599125]
[1725153987342,8.54772647,2505.7,2505.6,0.00599125]
[1725153989949,0.39916,2505.4,2505.1,0.3615]
[1725153990148,0.3866,2505.3,2505.1,0.3615]
[1725153990353,0.3868,2505.2,2505.0,0.39922]
[1725153990654,4.28824396,2505.3,2505.2,0.39918]
[1725153991147,4.28824396,2505.3,2505.2,4.39118]
[1725153992038,4.28824396,2505.3,2505.2,3.992]
[1725153992251,4.28824396,2505.3,2505.1,0.39919]
[1725153993050,4.28824396,2505.3,2505.2,0.39918]
[1725153994842,1.1569,2505.8,2505.5,0.39913]
[1725153995239,4.18752677,2505.7,2505.5,0.39913]
[1725153996749,4.18752677,2505.7,2505.4,0.77425]
[1725153997048,0.39913,2505.6,2505.2,4.54718]
[1725153997248,0.39913,2505.6,2505.2,4.92998]
[1725153997451,4.20862352,2505.5,2505.2,4.92998]
[1725153999544,4.20862352,2505.5,2505.4,0.39915]
[1725153999750,1.1569,2505.8,2505.5,0.39913]
[1725153999950,1.1569,2505.8,2505.6,0.376]
[1725154000152,4.31048083,2505.7,2505.6,0.376]
[1725154002048,4.31048083,2505.7,2505.6,0.77512]
[1725154002350,3.2078,2505.9,2505.6,0.77512]
[1725154002351,4.59457676,2505.8,2505.6,0.77512]
[1725154002550,4.59457676,2505.8,2505.7,0.3864]
[1725154002749,3.2078,2505.9,2505.7,0.3864]
[1725154003141,2.58346,2506.0,2505.7,0.3864]
[1725154003142,4.21594268,2505.8,2505.7,0.3864]
[1725154003342,4.21594268,2505.8,2505.7,0.78551]
[1725154003645,4.21594268,2505.9,2505.7,0.78551]
[1725154003955,2.1844,2506.0,2505.7,0.78551]
[1725154004254,4.18638924,2505.9,2505.7,0.78551]
[1725154008756,4.18638924,2505.9,2505.7,1.82691734]
[1725154009649,4.18638924,2505.9,2505.8,0.39909]
[1725154009950,4.18638924,2505.9,2505.8,1.44049734]
[1725154010654,4.18638924,2505.9,2505.8,2.39524535]
[1725154011147,4.18638924,2505.9,2505.8,2.98270667]
[1725154011348,4.18638924,2505.9,2505.8,4.15075581]
[1725154011544,4.18638924,2505.9,2505.8,3.56329449]
[1725154011744,4.18638924,2505.9,2505.8,3.96238449]
[1725154012051,0.7444,2506.0,2505.8,8.54024566]
[1725154012247,0.7444,2506.0,2505.9,1.04496107]
[1725154017360,2.1844,2506.0,2505.9,1.04496107]
[1725154017549,2.1844,2506.0,2505.7,1.95353914]
[1725154017550,10.64519574,2506.0,2505.7,1.04496107]
[1725154017744,5.04689,2505.8,2505.7,1.04496107]
[1725154017952,4.6478,2505.8,2505.6,1.04496107]
[1725154018152,0.77151,2505.7,2505.6,1.04496107]
[1725154018561,0.39912,2505.6,2505.5,1.04496107]
[1725154018766,1.14412,2505.6,2505.5,1.04496107]
[1725154019356,1.14412,2505.6,2505.5,2.58413383]
[1725154020360,1.14412,2505.6,2505.5,2.58402932]
[1725154021163,1.14412,2505.6,2505.5,2.5840544]
[1725154021863,1.14412,2505.6,2505.5,3.04192402]
[1725154023356,1.14412,2505.6,2505.5,2.58406422]
[1725154023958,1.14412,2505.6,2505.5,4.15120336]
[1725154024153,1.14412,2505.6,2505.5,4.15115876]
[1725154024351,5.41262614,2505.6,2505.5,4.15114531]
[1725154025863,5.41262614,2505.6,2505.5,3.56361816]
[1725154026164,5.41262614,2505.6,2505.5,4.15115971]
[1725154026361,5.01350614,2505.6,2505.5,4.15115971]
[1725154027065,4.65790614,2505.6,2505.5,4.15115971]
[1725154027557,4.65790614,2505.6,2505.5,3.56361816]
[1725154027765,4.65790614,2505.6,2505.5,4.15114612]
[1725154029265,4.65790614,2505.6,2505.5,4.15115818]
[1725154030869,4.65790614,2505.6,2505.5,3.56363022]
[1725154031063,4.26850614,2505.6,2505.5,2.98316314]
[1725154032159,4.26850614,2505.6,2505.5,2.58402314]
[1725154032360,4.26850614,2505.6,2505.5,2.98316314]
[1725154032861,4.26850614,2505.6,2505.5,2.58402314]
[1725154034169,4.26850614,2505.6,2505.4,2.08951886]
[1725154034170,0.39914,2505.5,2505.4,2.08951886]
[1725154034473,5.03412349,2505.5,2505.4,4.67367953]
[1725154034963,4.85123794,2505.5,2505.4,4.15334181]
[1725154035356,4.85123794,2505.5,2505.4,4.15332634]
[1725154035560,4.85123794,2505.5,2505.4,2.58416067]
[1725154035767,4.85123794,2505.5,2505.4,4.15334301]
[1725154037280,5.25037794,2505.5,2505.4,4.15334301]
[1725154037461,9.24157794,2505.5,2505.4,4.15334585]
[1725154037657,9.24157794,2505.5,2505.4,3.56579259]
[1725154037866,9.24157794,2505.5,2505.4,1.04621313]
[1725154038269,0.39915,2505.4,2505.3,1.04621313]
[1725154038475,0.39917,2505.3,2505.2,1.0462707]
[1725154038770,9.2889238,2505.3,2505.2,1.0462707]
[1725154039069,13.2809238,2505.3,2505.2,1.0462707]
[1725154040272,9.2889238,2505.3,2505.2,1.0462707]
[1725154040671,13.2809238,2505.3,2505.2,1.0462707]
[1725154041572,0.39918,2505.2,2505.0,1.57517359]
[1725154041770,0.39918,2505.2,2505.1,1.99687214]
[1725154041969,3.2078,2505.3,2505.1,3.04263661]
[1725154042163,0.388,2505.5,2505.2,4.51397073]
[1725154042362,0.388,2505.5,2505.3,1.41339896]
[1725154042572,4.56997847,2505.4,2505.3,1.81256896]
[1725154042763,4.56997847,2505.4,2505.3,4.79112775]
[1725154042965,4.56997847,2505.6,2505.5,0.39913]
[1725154043164,3.2078,2505.7,2505.5,4.55140899]
[1725154043465,3.2078,2505.7,2505.6,1.79623]
[1725154043865,7.39720239,2505.7,2505.6,1.79623]
[1725154044380,7.39720239,2505.7,2505.6,3.79262845]
[1725154044674,4.18940239,2505.7,2505.6,4.3153475]
[1725154045169,4.48158073,2505.9,2505.6,4.90285681]
[1725154045471,2.57587,2506.0,2505.7,1.04541951]
[1725154045659,4.48158073,2505.9,2505.7,1.40681951]
[1725154046065,4.48158073,2505.9,2505.7,1.80591951]
[1725154046270,4.48158073,2505.9,2505.8,1.04541951]
[1725154046474,4.53434658,2506.0,2505.8,3.04171067]
[1725154046671,0.3634,2506.0,2505.8,1.04541951]
[1725154046867,4.3538,2506.0,2505.8,1.04541951]
[1725154047067,4.35048235,2505.9,2505.8,1.04541951]
[1725154047575,4.35048235,2505.9,2505.8,3.04169698]
[1725154048174,4.35048235,2505.9,2505.8,1.04541951]
[1725154051975,4.72888235,2505.9,2505.8,1.04541951]
[1725154052176,5.12795235,2505.9,2505.8,1.04541951]
[1725154055084,0.39909,2505.8,2505.7,1.40681951]
[1725154055273,0.39909,2505.8,2505.7,3.40319666]
[1725154056181,0.39909,2505.8,2505.7,2.35777715]
[1725154057279,5.12796235,2505.9,2505.7,3.9259262]
[1725154057580,5.12796235,2505.9,2505.8,1.04542966]
[1725154060179,5.12796235,2505.9,2505.8,3.04175509]
[1725154063885,4.35048235,2505.9,2505.8,3.04175509]
[1725154064188,4.35048235,2505.9,2505.8,4.15196931]
[1725154064584,4.26730544,2506.0,2505.8,4.15190998]
[1725154064788,5.43354125,2506.1,2505.9,3.04190918]
[1725154065091,4.51470199,2506.0,2505.9,1.04564308]
[1725154067893,4.51470199,2506.0,2505.9,3.041915]
[1725154068398,4.51470199,2506.0,2505.9,1.04564308]
[1725154070181,4.91376199,2506.0,2505.9,1.04564308]
[1725154070596,4.91376199,2506.0,2505.8,1.04564308]
[1725154070597,0.39907,2505.9,2505.8,1.04564308]
[1725154070789,1.12897,2505.9,2505.8,3.04195748]
[1725154070985,5.46866539,2505.9,2505.8,3.04195748]
[1725154071288,5.46866539,2505.9,2505.8,1.04564308]
[1725154071484,5.46866539,2505.9,2505.8,3.04196672]
[1725154071893,5.46866539,2505.9,2505.8,1.04564308]
[1725154072084,5.46866539,2505.9,2505.8,3.04195284]
[1725154072285,5.46866539,2505.9,2505.8,1.04564308]
[1725154072786,5.46866539,2505.9,2505.8,3.0419532]
[1725154072987,5.46866539,2505.9,2505.8,1.04564308]
[1725154073395,5.46866539,2505.9,2505.8,3.04195303]
[1725154073901,5.46866539,2505.9,2505.8,1.04564308]
[1725154074989,5.46866539,2505.9,2505.8,3.04193269]
[1725154075194,5.46866539,2505.9,2505.8,1.04564308]